[Event "Live Chess"]
[Site "Chess.com"]
[Date "2023.05.20"]
[Round "-"]
[White "SavagePawn7"]
[Black "JanMur7"]
[Result "0-1"]
[WhiteElo "793"]
[BlackElo "1943"]
[TimeControl "300"]
[EndTime "13:08:39 PDT"]
[Termination "JanMur7 won by resignation"]

1. e4 {[%clk 0:04:56.5]} 1... e5 {[%clk 0:04:58.9]} 2. d4 {[%clk 0:04:54.9]}
2... exd4 {[%clk 0:04:57.8]} 3. c3 {[%clk 0:04:53.6]} 3... d3 {[%clk 0:04:56.6]}
4. Bxd3 {[%clk 0:04:51]} 4... Nc6 {[%clk 0:04:55.7]} 5. Nf3 {[%clk 0:04:47.9]}
5... Bc5 {[%clk 0:04:54.3]} 6. O-O {[%clk 0:04:43.9]} 6... d6 {[%clk 0:04:53.4]}
7. Re1 {[%clk 0:04:35.1]} 7... Nf6 {[%clk 0:04:50.2]} 8. Bg5 {[%clk 0:04:23.4]}
8... h6 {[%clk 0:04:47.3]} 9. Bxf6 {[%clk 0:04:20.4]} 9... Qxf6 {[%clk
0:04:45.7]} 10. b4 {[%clk 0:04:16.6]} 10... Bb6 {[%clk 0:04:44.2]} 11. Nbd2
{[%clk 0:03:56.4]} 11... Bg4 {[%clk 0:04:40.1]} 12. Bc4 {[%clk 0:03:42.9]} 12...
Ne5 {[%clk 0:04:24.7]} 13. Re3 {[%clk 0:03:16.3]} 13... Bxe3 {[%clk 0:04:22]}
14. fxe3 {[%clk 0:03:13.2]} 14... Nxc4 {[%clk 0:04:20.9]} 15. Nxc4 {[%clk
0:03:11.5]} 15... Qxc3 {[%clk 0:04:18.4]} 16. Rc1 {[%clk 0:03:04]} 16... Qf6
{[%clk 0:04:09.4]} 17. e5 {[%clk 0:02:39.6]} 17... dxe5 {[%clk 0:04:02.5]} 18.
Ncxe5 {[%clk 0:02:11.1]} 18... Bxf3 {[%clk 0:03:55.8]} 19. Qd7+ {[%clk
0:01:55.7]} 19... Kf8 {[%clk 0:03:53.7]} 20. Nxf3 {[%clk 0:01:33.6]} 20... Qe7
{[%clk 0:03:51.6]} 21. Qxe7+ {[%clk 0:01:22.1]} 21... Kxe7 {[%clk 0:03:51.5]}
22. Rxc7+ {[%clk 0:01:20.3]} 22... Kf6 {[%clk 0:03:47.6]} 23. Rxb7 {[%clk
0:01:13.7]} 23... Rhb8 {[%clk 0:03:45.7]} 24. Rxb8 {[%clk 0:01:05.8]} 24... Rxb8
{[%clk 0:03:45.6]} 25. Nd4 {[%clk 0:01:02]} 25... Rxb4 {[%clk 0:03:42.4]} 26.
Nc6 {[%clk 0:00:59.6]} 26... Rb1+ {[%clk 0:03:39.2]} 27. Kf2 {[%clk 0:00:57.6]}
27... Rb2+ {[%clk 0:03:39.1]} 28. Kf3 {[%clk 0:00:56]} 28... Rxa2 {[%clk
0:03:39]} 29. h4 {[%clk 0:00:49.8]} 29... a5 {[%clk 0:03:33.8]} 30. g4 {[%clk
0:00:34.5]} 30... a4 {[%clk 0:03:33.7]} 31. Nd4 {[%clk 0:00:30.1]} 31... a3
{[%clk 0:03:31.6]} 32. e4 {[%clk 0:00:26.8]} 32... Rh2 {[%clk 0:03:26.1]} 33.
g5+ {[%clk 0:00:19.2]} 33... hxg5 {[%clk 0:03:25]} 34. hxg5+ {[%clk 0:00:18.2]}
34... Kxg5 {[%clk 0:03:24.9]} 0-1

[Event "Live Chess"]
[Site "Chess.com"]
[Date "2023.05.20"]
[Round "-"]
[White "reshmiramachandran"]
[Black "SiDebanks"]
[Result "0-1"]
[WhiteElo "510"]
[BlackElo "1372"]
[TimeControl "300"]
[EndTime "13:08:41 PDT"]
[Termination "SiDebanks won by checkmate"]

1. e4 {[%clk 0:04:56.1]} 1... c6 {[%clk 0:04:58.5]} 2. Nf3 {[%clk 0:04:54.3]}
2... d5 {[%clk 0:04:58.4]} 3. exd5 {[%clk 0:04:52.8]} 3... cxd5 {[%clk
0:04:58.3]} 4. d4 {[%clk 0:04:51.3]} 4... Nc6 {[%clk 0:04:57.7]} 5. Bb5 {[%clk
0:04:50]} 5... Bg4 {[%clk 0:04:56.2]} 6. Nc3 {[%clk 0:04:47.2]} 6... e6 {[%clk
0:04:53.1]} 7. Bf4 {[%clk 0:04:45.1]} 7... a6 {[%clk 0:04:49.6]} 8. Bxc6+ {[%clk
0:04:42.7]} 8... bxc6 {[%clk 0:04:49.5]} 9. O-O {[%clk 0:04:40.7]} 9... Nf6
{[%clk 0:04:47.9]} 10. Bg5 {[%clk 0:04:38.6]} 10... h6 {[%clk 0:04:43.3]} 11.
Bh4 {[%clk 0:04:37.2]} 11... Be7 {[%clk 0:04:35.2]} 12. h3 {[%clk 0:04:34.1]}
12... Bf5 {[%clk 0:04:26]} 13. Bg3 {[%clk 0:04:31.6]} 13... Nh5 {[%clk
0:04:16.5]} 14. Bh2 {[%clk 0:04:29.1]} 14... Bd6 {[%clk 0:04:11.6]} 15. Bxd6
{[%clk 0:04:26]} 15... Qxd6 {[%clk 0:04:11.5]} 16. Ne5 {[%clk 0:04:22.1]} 16...
Nf6 {[%clk 0:03:54]} 17. f4 {[%clk 0:04:15.2]} 17... Ne4 {[%clk 0:03:40.3]} 18.
g4 {[%clk 0:04:10.6]} 18... Nxc3 {[%clk 0:03:26.9]} 19. bxc3 {[%clk 0:04:05.7]}
19... Be4 {[%clk 0:03:25.1]} 20. Rb1 {[%clk 0:04:02.1]} 20... O-O {[%clk
0:03:14.9]} 21. Rb6 {[%clk 0:03:57.9]} 21... Rfc8 {[%clk 0:02:56.8]} 22. Qd2
{[%clk 0:03:21.9]} 22... f6 {[%clk 0:02:48.9]} 23. Nd3 {[%clk 0:03:11.8]} 23...
Qc7 {[%clk 0:02:39.1]} 24. Rb2 {[%clk 0:03:07.7]} 24... Kf7 {[%clk 0:02:20.4]}
25. f5 {[%clk 0:02:57.1]} 25... Qg3+ {[%clk 0:02:15.7]} 26. Qg2 {[%clk
0:02:39.9]} 26... Qxg2# {[%clk 0:02:12.9]} 0-1

[Event "Live Chess"]
[Site "Chess.com"]
[Date "2023.05.20"]
[Round "-"]
[White "Vladyslav2008"]
[Black "Salpingidis"]
[Result "1-0"]
[WhiteElo "2170"]
[BlackElo "2251"]
[TimeControl "300"]
[EndTime "13:08:41 PDT"]
[Termination "Vladyslav2008 won by resignation"]

1. d4 {[%clk 0:04:53.4]} 1... e6 {[%clk 0:04:58.8]} 2. c4 {[%clk 0:04:51.9]}
2... d5 {[%clk 0:04:57.9]} 3. Nf3 {[%clk 0:04:50]} 3... Nf6 {[%clk 0:04:57.3]}
4. e3 {[%clk 0:04:49.1]} 4... Be7 {[%clk 0:04:56]} 5. Nbd2 {[%clk 0:04:47.3]}
5... O-O {[%clk 0:04:55.5]} 6. Bd3 {[%clk 0:04:46.1]} 6... b6 {[%clk 0:04:54]}
7. O-O {[%clk 0:04:44.4]} 7... Bb7 {[%clk 0:04:53]} 8. b3 {[%clk 0:04:43.4]}
8... Nbd7 {[%clk 0:04:51.7]} 9. Bb2 {[%clk 0:04:42.2]} 9... c5 {[%clk
0:04:51.3]} 10. Qe2 {[%clk 0:04:29.3]} 10... cxd4 {[%clk 0:04:47.6]} 11. exd4
{[%clk 0:04:27.9]} 11... dxc4 {[%clk 0:04:43.9]} 12. bxc4 {[%clk 0:04:25.8]}
12... Rc8 {[%clk 0:04:41.5]} 13. Rac1 {[%clk 0:04:22.9]} 13... Qc7 {[%clk
0:04:40.6]} 14. Rfe1 {[%clk 0:04:20.8]} 14... Qb8 {[%clk 0:04:39.8]} 15. Ne5
{[%clk 0:04:16]} 15... Qa8 {[%clk 0:04:38.9]} 16. Ndf3 {[%clk 0:04:12.4]} 16...
Nxe5 {[%clk 0:04:37.2]} 17. dxe5 {[%clk 0:04:09.5]} 17... Nd7 {[%clk 0:04:34.2]}
18. Bb1 {[%clk 0:04:03]} 18... Nc5 {[%clk 0:04:30.7]} 19. Red1 {[%clk
0:03:51.5]} 19... Rfd8 {[%clk 0:04:28.4]} 20. Ne1 {[%clk 0:03:49.9]} 20... Rxd1
{[%clk 0:04:23.3]} 21. Rxd1 {[%clk 0:03:48.6]} 21... Rd8 {[%clk 0:04:23.1]} 22.
Rc1 {[%clk 0:03:47.2]} 22... Ne4 {[%clk 0:04:17]} 23. Nd3 {[%clk 0:03:30]} 23...
Qc8 {[%clk 0:03:56.2]} 24. Qc2 {[%clk 0:03:25.2]} 24... Qc6 {[%clk 0:03:49.5]}
25. f3 {[%clk 0:03:22.2]} 25... Nc5 {[%clk 0:03:45.1]} 26. Nb4 {[%clk
0:03:19.3]} 26... Nd3 {[%clk 0:03:30.3]} 27. Nxc6 {[%clk 0:03:18]} 27... Bxc6
{[%clk 0:03:29.4]} 28. Rd1 {[%clk 0:03:11.5]} 28... Bc5+ {[%clk 0:03:28.2]} 29.
Kf1 {[%clk 0:03:09.8]} 1-0

[Event "Live Chess"]
[Site "Chess.com"]
[Date "2023.05.20"]
[Round "-"]
[White "Geomorph"]
[Black "FlyingChessKestrel13"]
[Result "0-1"]
[WhiteElo "1244"]
[BlackElo "2129"]
[TimeControl "300"]
[EndTime "13:08:44 PDT"]
[Termination "FlyingChessKestrel13 won by checkmate"]

1. e4 {[%clk 0:04:58.7]} 1... c5 {[%clk 0:04:58.1]} 2. Nf3 {[%clk 0:04:56.2]}
2... Nc6 {[%clk 0:04:56.8]} 3. Bb5 {[%clk 0:04:53.9]} 3... e6 {[%clk 0:04:55.1]}
4. O-O {[%clk 0:04:39.7]} 4... a6 {[%clk 0:04:50.1]} 5. Bxc6 {[%clk 0:04:37.4]}
5... bxc6 {[%clk 0:04:39.8]} 6. d4 {[%clk 0:04:36.5]} 6... cxd4 {[%clk
0:04:38.3]} 7. Qxd4 {[%clk 0:04:35.5]} 7... Nf6 {[%clk 0:04:35.5]} 8. Bg5 {[%clk
0:04:34.3]} 8... Be7 {[%clk 0:04:34.1]} 9. Nc3 {[%clk 0:04:30.6]} 9... O-O
{[%clk 0:04:32.4]} 10. Rad1 {[%clk 0:04:22.3]} 10... d5 {[%clk 0:04:30.8]} 11.
exd5 {[%clk 0:04:08.7]} 11... exd5 {[%clk 0:04:28]} 12. Ne5 {[%clk 0:03:59.3]}
12... Qc7 {[%clk 0:04:19.4]} 13. Rfe1 {[%clk 0:03:49.2]} 13... Be6 {[%clk
0:04:17.1]} 14. Bf4 {[%clk 0:03:25.1]} 14... c5 {[%clk 0:04:08.6]} 15. Qd2
{[%clk 0:03:11.4]} 15... Bd6 {[%clk 0:04:05.8]} 16. a3 {[%clk 0:02:43.7]} 16...
d4 {[%clk 0:04:01.4]} 17. Na4 {[%clk 0:02:38]} 17... Nd5 {[%clk 0:03:55.1]} 18.
c4 {[%clk 0:02:15]} 18... Nxf4 {[%clk 0:03:51.1]} 19. Qxf4 {[%clk 0:02:10.5]}
19... f6 {[%clk 0:03:49.6]} 20. Qe4 {[%clk 0:01:22.3]} 20... fxe5 {[%clk
0:03:44.4]} 21. g3 {[%clk 0:01:16.2]} 21... Kh8 {[%clk 0:03:42.6]} 22. f4 {[%clk
0:01:15]} 22... Bf5 {[%clk 0:03:39.9]} 23. Qd5 {[%clk 0:01:10.1]} 23... e4
{[%clk 0:03:38.4]} 24. b4 {[%clk 0:01:00.9]} 24... Bg4 {[%clk 0:03:34.1]} 25.
Rc1 {[%clk 0:00:54.9]} 25... Bf3 {[%clk 0:03:28.3]} 26. bxc5 {[%clk 0:00:51]}
26... Bxf4 {[%clk 0:03:25.7]} 27. gxf4 {[%clk 0:00:40.4]} 27... Qxf4 {[%clk
0:03:23.3]} 28. Nb6 {[%clk 0:00:14.2]} 28... Qg4+ {[%clk 0:03:19.9]} 29. Kf2
{[%clk 0:00:11.9]} 29... Qg2# {[%clk 0:03:19.1]} 0-1

[Event "Live Chess"]
[Site "Chess.com"]
[Date "2023.05.20"]
[Round "-"]
[White "whitedjohn"]
[Black "zdanevych"]
[Result "0-1"]
[WhiteElo "1645"]
[BlackElo "1533"]
[TimeControl "300"]
[EndTime "13:08:54 PDT"]
[Termination "zdanevych won by checkmate"]

1. e4 {[%clk 0:04:56.8]} 1... d5 {[%clk 0:04:58.9]} 2. exd5 {[%clk 0:04:54.1]}
2... c6 {[%clk 0:04:58.3]} 3. dxc6 {[%clk 0:04:51.2]} 3... Nxc6 {[%clk
0:04:58.2]} 4. Nf3 {[%clk 0:04:48.6]} 4... a6 {[%clk 0:04:57.2]} 5. d4 {[%clk
0:04:46.9]} 5... e6 {[%clk 0:04:55.8]} 6. Bc4 {[%clk 0:04:40.6]} 6... h6 {[%clk
0:04:55]} 7. O-O {[%clk 0:04:38.2]} 7... Nf6 {[%clk 0:04:54.5]} 8. Bf4 {[%clk
0:04:35.5]} 8... Be7 {[%clk 0:04:51.9]} 9. Nc3 {[%clk 0:04:32.7]} 9... O-O
{[%clk 0:04:51]} 10. Re1 {[%clk 0:04:31.4]} 10... b5 {[%clk 0:04:49]} 11. Bb3
{[%clk 0:04:28.3]} 11... Bb7 {[%clk 0:04:48.4]} 12. d5 {[%clk 0:04:23.1]} 12...
Nxd5 {[%clk 0:04:44.8]} 13. Nxd5 {[%clk 0:04:22.5]} 13... exd5 {[%clk
0:04:44.2]} 14. Bxd5 {[%clk 0:04:17.6]} 14... Bf6 {[%clk 0:04:36.1]} 15. c3
{[%clk 0:04:13.6]} 15... Qb6 {[%clk 0:04:29.6]} 16. Be3 {[%clk 0:04:04.8]} 16...
Qc7 {[%clk 0:04:27.8]} 17. Bc5 {[%clk 0:03:55.8]} 17... Rfd8 {[%clk 0:04:24.7]}
18. Qb3 {[%clk 0:03:54]} 18... Na5 {[%clk 0:04:23.3]} 19. Bxb7 {[%clk
0:03:46.7]} 19... Nxb3 {[%clk 0:04:21.6]} 20. Bxa8 {[%clk 0:03:45.2]} 20... Rxa8
{[%clk 0:04:18.9]} 21. axb3 {[%clk 0:03:40.1]} 21... Qxc5 {[%clk 0:04:17.8]} 22.
Re3 {[%clk 0:03:34.6]} 22... b4 {[%clk 0:04:10.1]} 23. c4 {[%clk 0:03:30.9]}
23... Bxb2 {[%clk 0:04:08.2]} 24. Rb1 {[%clk 0:03:29.6]} 24... Bc3 {[%clk
0:04:07.4]} 25. Rd1 {[%clk 0:03:25]} 25... a5 {[%clk 0:04:05.4]} 26. Rd7 {[%clk
0:03:22.8]} 26... a4 {[%clk 0:04:01.9]} 27. Ree7 {[%clk 0:03:19]} 27... axb3
{[%clk 0:04:00]} 28. Rxf7 {[%clk 0:03:16.8]} 28... b2 {[%clk 0:03:57.9]} 29. Nd2
{[%clk 0:03:13.7]} 29... Ra1+ {[%clk 0:03:51.8]} 30. Nf1 {[%clk 0:03:11.3]}
30... b1=Q {[%clk 0:03:48.1]} 31. Rxg7+ {[%clk 0:03:08.8]} 31... Bxg7 {[%clk
0:03:46.4]} 32. Rxg7+ {[%clk 0:03:06.3]} 32... Kxg7 {[%clk 0:03:44.7]} 33. Kh1
{[%clk 0:03:01.5]} 33... Qxf1# {[%clk 0:03:44.6]} 0-1

[Event "Live Chess"]
[Site "Chess.com"]
[Date "2023.05.20"]
[Round "-"]
[White "KGreenGator"]
[Black "OceanFloater"]
[Result "1-0"]
[WhiteElo "1787"]
[BlackElo "998"]
[TimeControl "300"]
[EndTime "13:08:58 PDT"]
[Termination "KGreenGator won by checkmate"]

1. c4 {[%clk 0:04:58.8]} 1... c6 {[%clk 0:04:58.5]} 2. Nc3 {[%clk 0:04:58]} 2...
d5 {[%clk 0:04:56.2]} 3. d4 {[%clk 0:04:57.6]} 3... dxc4 {[%clk 0:04:53]} 4. e4
{[%clk 0:04:55.7]} 4... Nf6 {[%clk 0:04:52.5]} 5. Bxc4 {[%clk 0:04:53.7]} 5...
e6 {[%clk 0:04:42.7]} 6. Nf3 {[%clk 0:04:51.6]} 6... b5 {[%clk 0:04:39.4]} 7.
Bb3 {[%clk 0:04:49.6]} 7... a5 {[%clk 0:04:36.5]} 8. a3 {[%clk 0:04:47.7]} 8...
a4 {[%clk 0:04:35.5]} 9. Ba2 {[%clk 0:04:46.6]} 9... c5 {[%clk 0:04:27.1]} 10.
Nxb5 {[%clk 0:04:36.6]} 10... Nxe4 {[%clk 0:04:13.2]} 11. O-O {[%clk 0:04:31.3]}
11... Qb6 {[%clk 0:03:58.4]} 12. Bc4 {[%clk 0:04:25.7]} 12... Ba6 {[%clk
0:03:56.4]} 13. Qd3 {[%clk 0:04:21.2]} 13... Nd6 {[%clk 0:03:41.1]} 14. Nxd6+
{[%clk 0:04:16.8]} 14... Qxd6 {[%clk 0:03:40.1]} 15. Bxa6 {[%clk 0:04:15]} 15...
Rxa6 {[%clk 0:03:37.8]} 16. Be3 {[%clk 0:04:11.5]} 16... Qb6 {[%clk 0:03:21.2]}
17. dxc5 {[%clk 0:04:07.2]} 17... Bxc5 {[%clk 0:03:19.7]} 18. Bxc5 {[%clk
0:04:02.3]} 18... Qxc5 {[%clk 0:03:17.6]} 19. Rfd1 {[%clk 0:04:01.3]} 19... O-O
{[%clk 0:03:14.9]} 20. Rac1 {[%clk 0:03:54.8]} 20... Qd5 {[%clk 0:03:00.1]} 21.
Qxd5 {[%clk 0:03:53.1]} 21... exd5 {[%clk 0:02:59.2]} 22. Rxd5 {[%clk
0:03:52.2]} 22... Rc6 {[%clk 0:02:58.2]} 23. Rxc6 {[%clk 0:03:49.8]} 23... Nxc6
{[%clk 0:02:57.4]} 24. h3 {[%clk 0:03:49.3]} 24... h6 {[%clk 0:02:55.4]} 25. Rc5
{[%clk 0:03:46.2]} 25... Ne7 {[%clk 0:02:53.3]} 26. Ra5 {[%clk 0:03:45.1]} 26...
Rd8 {[%clk 0:02:50.6]} 27. Rxa4 {[%clk 0:03:43.5]} 27... Rd1+ {[%clk 0:02:49]}
28. Kh2 {[%clk 0:03:41.6]} 28... Rb1 {[%clk 0:02:48.6]} 29. b4 {[%clk
0:03:39.4]} 29... Ra1 {[%clk 0:02:46.6]} 30. Ra7 {[%clk 0:03:37]} 30... Nd5
{[%clk 0:02:45.2]} 31. Ra8+ {[%clk 0:03:35.7]} 31... Kh7 {[%clk 0:02:42.8]} 32.
g3 {[%clk 0:03:32.3]} 32... Nf6 {[%clk 0:02:34.3]} 33. Kg2 {[%clk 0:03:31.1]}
33... Ne4 {[%clk 0:02:33.2]} 34. Re8 {[%clk 0:03:15.7]} 34... Nf6 {[%clk
0:02:26.3]} 35. Re7 {[%clk 0:03:08.5]} 35... Rxa3 {[%clk 0:02:24]} 36. Rxf7
{[%clk 0:03:07.6]} 36... Rb3 {[%clk 0:02:22.8]} 37. Rb7 {[%clk 0:03:05.7]} 37...
Rb2 {[%clk 0:02:20.4]} 38. Ne1 {[%clk 0:02:55.2]} 38... Ne4 {[%clk 0:02:18.8]}
39. Nd3 {[%clk 0:02:53.4]} 39... Rd2 {[%clk 0:02:15.8]} 40. Kf3 {[%clk
0:02:50.1]} 40... Ng5+ {[%clk 0:02:13.1]} 41. Ke3 {[%clk 0:02:47.3]} 41... Rc2
{[%clk 0:02:07.4]} 42. h4 {[%clk 0:02:44.9]} 42... Ne6 {[%clk 0:02:05.3]} 43. b5
{[%clk 0:02:40.4]} 43... Nc5 {[%clk 0:02:03.4]} 44. Nxc5 {[%clk 0:02:38.5]}
44... Rxc5 {[%clk 0:02:03]} 45. b6 {[%clk 0:02:37.8]} 45... Rb5 {[%clk
0:02:01.4]} 46. Rb8 {[%clk 0:02:36.8]} 46... Kg6 {[%clk 0:02:00.5]} 47. b7
{[%clk 0:02:36.1]} 47... Kf6 {[%clk 0:01:59.1]} 48. Rf8+ {[%clk 0:02:33.9]}
48... Kg6 {[%clk 0:01:52.2]} 49. b8=Q {[%clk 0:02:32.9]} 49... Rxb8 {[%clk
0:01:47.1]} 50. Rxb8 {[%clk 0:02:30.4]} 50... Kf5 {[%clk 0:01:46.8]} 51. Rb7
{[%clk 0:02:26.4]} 51... g6 {[%clk 0:01:45.3]} 52. f3 {[%clk 0:02:23.7]} 52...
h5 {[%clk 0:01:43.7]} 53. Rb5+ {[%clk 0:02:20.1]} 53... Kf6 {[%clk 0:01:42.9]}
54. Kf4 {[%clk 0:02:19]} 54... Ke6 {[%clk 0:01:39.2]} 55. Rb6+ {[%clk
0:02:17.7]} 55... Kf7 {[%clk 0:01:38.4]} 56. Kg5 {[%clk 0:02:17.1]} 56... Kg7
{[%clk 0:01:37.5]} 57. Rb7+ {[%clk 0:02:16.5]} 57... Kf8 {[%clk 0:01:35.4]} 58.
Kxg6 {[%clk 0:02:15.5]} 58... Ke8 {[%clk 0:01:34.6]} 59. Kf6 {[%clk 0:02:13.4]}
59... Kd8 {[%clk 0:01:33.9]} 60. Ke6 {[%clk 0:02:12.5]} 60... Kc8 {[%clk
0:01:33.3]} 61. Rd7 {[%clk 0:02:11.3]} 61... Kb8 {[%clk 0:01:31.4]} 62. Kd6
{[%clk 0:02:11]} 62... Kc8 {[%clk 0:01:29.8]} 63. Kc6 {[%clk 0:02:10.7]} 63...
Kb8 {[%clk 0:01:28.3]} 64. Rc7 {[%clk 0:02:10.2]} 64... Ka8 {[%clk 0:01:27]} 65.
Kb6 {[%clk 0:02:09.9]} 65... Kb8 {[%clk 0:01:26]} 66. Rc6 {[%clk 0:02:09.2]}
66... Ka8 {[%clk 0:01:22.8]} 67. Rc8# {[%clk 0:02:08.8]} 1-0

[Event "Live Chess"]
[Site "Chess.com"]
[Date "2023.05.20"]
[Round "-"]
[White "EdenHazard8"]
[Black "fretle"]
[Result "1-0"]
[WhiteElo "2087"]
[BlackElo "1847"]
[TimeControl "300"]
[EndTime "13:09:09 PDT"]
[Termination "EdenHazard8 won by resignation"]

1. e4 {[%clk 0:04:55.8]} 1... e6 {[%clk 0:04:58.8]} 2. d4 {[%clk 0:04:54.8]}
2... b6 {[%clk 0:04:58.3]} 3. Bd3 {[%clk 0:04:53.3]} 3... Bb7 {[%clk 0:04:57.6]}
4. Nd2 {[%clk 0:04:52.9]} 4... Nf6 {[%clk 0:04:56.4]} 5. f4 {[%clk 0:04:50.5]}
5... d5 {[%clk 0:04:54.1]} 6. e5 {[%clk 0:04:49.5]} 6... Ng8 {[%clk 0:04:51.2]}
7. c3 {[%clk 0:04:48.2]} 7... Ne7 {[%clk 0:04:41.9]} 8. Ngf3 {[%clk 0:04:43.1]}
8... c5 {[%clk 0:04:31.7]} 9. Nf1 {[%clk 0:04:38.7]} 9... Nec6 {[%clk
0:04:29.4]} 10. Ng3 {[%clk 0:04:36.2]} 10... Ba6 {[%clk 0:04:14.5]} 11. Bxa6
{[%clk 0:04:32]} 11... Nxa6 {[%clk 0:04:14.4]} 12. O-O {[%clk 0:04:30.8]} 12...
Be7 {[%clk 0:04:09.8]} 13. f5 {[%clk 0:04:26.1]} 13... Qd7 {[%clk 0:03:56.6]}
14. Nh5 {[%clk 0:04:23.6]} 14... O-O-O {[%clk 0:03:41.2]} 15. Ng5 {[%clk
0:04:16.9]} 15... Rdf8 {[%clk 0:03:16.7]} 16. Nxg7 {[%clk 0:04:08.9]} 16... exf5
{[%clk 0:03:11.3]} 17. Nxf5 {[%clk 0:04:07.2]} 17... Bxg5 {[%clk 0:03:06]} 18.
Bxg5 {[%clk 0:04:07.1]} 18... Rhg8 {[%clk 0:03:00.3]} 19. Nd6+ {[%clk
0:04:05.2]} 19... Kb8 {[%clk 0:02:51.3]} 20. Bh6 {[%clk 0:04:02.9]} 20... Nc7
{[%clk 0:02:20.9]} 21. Bxf8 {[%clk 0:04:00.5]} 21... Rxf8 {[%clk 0:02:20.8]} 22.
Qh5 {[%clk 0:03:57.9]} 22... Nd8 {[%clk 0:02:17.6]} 23. Qxh7 {[%clk 0:03:55.2]}
23... Nce6 {[%clk 0:02:16.4]} 24. Qf5 {[%clk 0:03:50.5]} 24... Nb7 {[%clk
0:02:08.9]} 25. Nxb7 {[%clk 0:03:48.8]} 25... Kxb7 {[%clk 0:02:08.1]} 26. Rf2
{[%clk 0:03:45.9]} 26... cxd4 {[%clk 0:02:00.1]} 27. cxd4 {[%clk 0:03:42.2]}
27... Qa4 {[%clk 0:01:41.6]} 28. Qh7 {[%clk 0:03:36]} 28... Qxd4 {[%clk
0:01:36.4]} 29. Rf1 {[%clk 0:03:34]} 29... Ng5 {[%clk 0:01:24.4]} 30. Qg7 {[%clk
0:03:30.6]} 30... Ne6 {[%clk 0:00:52.3]} 31. Qg3 {[%clk 0:03:23.1]} 31... Ka8
{[%clk 0:00:45.4]} 32. Kh1 {[%clk 0:03:20.8]} 32... Nc5 {[%clk 0:00:36.8]} 33.
Rxf7 {[%clk 0:03:14.1]} 33... Rb8 {[%clk 0:00:35.8]} 34. Qg7 {[%clk 0:03:11]}
1-0

[Event "Live Chess"]
[Site "Chess.com"]
[Date "2023.05.20"]
[Round "-"]
[White "WelshTiger"]
[Black "Stanbad1"]
[Result "0-1"]
[WhiteElo "2405"]
[BlackElo "2421"]
[TimeControl "300"]
[EndTime "13:09:21 PDT"]
[Termination "Stanbad1 won by resignation"]

1. e4 {[%clk 0:04:50.3]} 1... e6 {[%clk 0:04:58.1]} 2. Nf3 {[%clk 0:04:47.6]}
2... d5 {[%clk 0:04:56.5]} 3. e5 {[%clk 0:04:47.2]} 3... c5 {[%clk 0:04:53.1]}
4. b4 {[%clk 0:04:46.4]} 4... cxb4 {[%clk 0:04:50]} 5. a3 {[%clk 0:04:45.9]}
5... b3 {[%clk 0:04:48.6]} 6. cxb3 {[%clk 0:04:44.2]} 6... Nc6 {[%clk
0:04:48.2]} 7. d4 {[%clk 0:04:26.4]} 7... f6 {[%clk 0:04:45.3]} 8. exf6 {[%clk
0:04:24]} 8... Nxf6 {[%clk 0:04:39.7]} 9. Bd3 {[%clk 0:04:23.4]} 9... Bd6 {[%clk
0:04:37.8]} 10. O-O {[%clk 0:04:20.1]} 10... O-O {[%clk 0:04:35.8]} 11. b4
{[%clk 0:04:18.4]} 11... Bd7 {[%clk 0:04:33.5]} 12. Nc3 {[%clk 0:04:14.3]} 12...
Rc8 {[%clk 0:04:31.6]} 13. Bb2 {[%clk 0:04:13.2]} 13... h6 {[%clk 0:04:26.7]}
14. Rc1 {[%clk 0:04:07.9]} 14... Ng4 {[%clk 0:04:21.6]} 15. h3 {[%clk
0:04:00.2]} 15... Rxf3 {[%clk 0:04:16.1]} 16. Qxf3 {[%clk 0:03:59.3]} 16... Nh2
{[%clk 0:04:14.7]} 17. Qe3 {[%clk 0:03:55.4]} 17... Nxf1 {[%clk 0:04:12.1]} 18.
Rxf1 {[%clk 0:03:45.9]} 18... Qf6 {[%clk 0:04:10.9]} 19. Ne2 {[%clk 0:03:42.4]}
19... a5 {[%clk 0:04:07]} 20. b5 {[%clk 0:03:39.6]} 20... Ne7 {[%clk 0:04:05.5]}
21. a4 {[%clk 0:03:38.6]} 21... Nf5 {[%clk 0:04:03.8]} 22. Bxf5 {[%clk
0:03:37.8]} 22... Qxf5 {[%clk 0:04:01.7]} 23. Ba3 {[%clk 0:03:28.2]} 23... Bb4
{[%clk 0:03:51.6]} 24. Bc1 {[%clk 0:03:06.9]} 24... Rc2 {[%clk 0:03:39.5]} 25.
Nf4 {[%clk 0:03:03.4]} 25... Ra2 {[%clk 0:03:34.5]} 26. Qb3 {[%clk 0:02:55.3]}
26... Ra1 {[%clk 0:03:31.3]} 27. Nd3 {[%clk 0:02:49.7]} 27... Bd6 {[%clk
0:03:25.5]} 28. Be3 {[%clk 0:02:41.1]} 28... Bh2+ {[%clk 0:03:21.2]} 29. Kxh2
{[%clk 0:02:39.2]} 29... Rxf1 {[%clk 0:03:21.1]} 30. Ne5 {[%clk 0:02:34]} 30...
Be8 {[%clk 0:03:18.3]} 31. Qc3 {[%clk 0:02:27.4]} 31... Rxf2 {[%clk 0:03:13.5]}
32. Qc8 {[%clk 0:02:19.4]} 32... Rc2 {[%clk 0:03:02.3]} 33. Qxe8+ {[%clk
0:02:17.8]} 33... Kh7 {[%clk 0:03:00.7]} 34. Nf7 {[%clk 0:02:12.5]} 34... Qe4
{[%clk 0:02:42.7]} 35. Qh8+ {[%clk 0:02:10.9]} 35... Kg6 {[%clk 0:02:39.8]} 36.
Ne5+ {[%clk 0:02:10.5]} 36... Kh5 {[%clk 0:02:39.1]} 37. Qe8+ {[%clk 0:02:08.7]}
37... Kh4 {[%clk 0:02:33.8]} 38. Bg5+ {[%clk 0:01:48.5]} 38... Kxg5 {[%clk
0:02:15]} 39. Qe7+ {[%clk 0:01:45.4]} 39... Kh5 {[%clk 0:02:10.4]} 40. Qf7+
{[%clk 0:01:40.8]} 40... g6 {[%clk 0:02:06.8]} 41. Qf1 {[%clk 0:01:11.1]} 41...
Qe2 {[%clk 0:01:59.6]} 42. Qg1 {[%clk 0:00:59.3]} 42... Qe4 {[%clk 0:01:55.5]}
43. Qd1+ {[%clk 0:00:47.7]} 43... Kg5 {[%clk 0:01:49.4]} 44. Qf1 {[%clk
0:00:40.2]} 44... Qf4+ {[%clk 0:01:42.7]} 45. Qxf4+ {[%clk 0:00:36.8]} 45...
Kxf4 {[%clk 0:01:42.6]} 46. Nxg6+ {[%clk 0:00:36.2]} 46... Ke4 {[%clk
0:01:39.4]} 47. Nf8 {[%clk 0:00:36.1]} 47... Kxd4 {[%clk 0:01:35.8]} 48. Nxe6+
{[%clk 0:00:35]} 48... Ke5 {[%clk 0:01:35.4]} 49. Nd8 {[%clk 0:00:34]} 49... d4
{[%clk 0:01:33]} 0-1